bitfinex/quotes_ETHUSD_20241223
["timestamp","ask_amount","ask_price","bid_price","bid_amount"]
[1734988966458,2.89354,3456.0,3455.4,1.0643]
[1734988966659,4.01918,3456.4,3455.4,1.0643]
[1734988966962,2.89335,3456.2,3455.4,1.0643]
[1734988967137,2.89326,3456.3,3454.7,1.0643]
[1734988967332,1.126,3456.4,3454.9,2.89439]
[1734988967544,3.0,3456.0,3455.0,2.89435]
[1734988967746,2.89352,3456.0,3454.9,0.395869]
[1734988967967,2.89367,3455.9,3454.7,4.53844596]
[1734988968227,3.0,3456.8,3455.0,1.0643]
[1734988968228,1.18029637,3456.5,3455.0,1.0643]
[1734988968387,2.89352,3456.0,3455.0,1.0643]
[1734988968849,2.89318,3456.4,3455.0,1.0643]
[1734988969035,2.89335,3456.2,3455.0,1.0643]
[1734988969235,2.89369,3455.8,3455.0,1.0643]
[1734988969863,2.0,3456.2,3455.0,1.0643]
[1734988970064,2.89397,3455.5,3455.0,1.0643]
[1734988970268,3.0,3455.7,3455.0,1.0643]
[1734988970468,2.89383,3455.7,3455.0,1.0643]
[1734988971118,3.0,3456.3,3455.0,1.0643]
[1734988971410,2.89392,3455.6,3455.0,1.0643]
[1734988971868,2.89392,3455.6,3455.0,1.0593]
[1734988972073,2.89354,3456.0,3455.0,1.0593]
[1734988972271,2.8936,3455.9,3455.0,1.0593]
[1734988972515,3.0,3456.3,3455.0,1.0593]
[1734988973014,2.89335,3456.2,3455.0,1.0593]
[1734988973170,2.8939,3455.6,3455.0,1.0593]
[1734988973572,1.18029637,3456.3,3455.0,1.0593]
[1734988973922,4.0146,3456.0,3455.0,1.0593]
[1734988974129,2.89464,3454.7,3454.0,1.1347]
[1734988974411,3.0,3454.5,3452.7,2.8962]
[1734988974630,2.89525,3454.0,3452.8,2.89619]
[1734988974838,2.89469,3454.6,3453.2,1.159777]
[1734988974839,2.89544,3453.7,3453.2,1.159777]
[1734988974968,2.89544,3453.7,3453.3,1.0206]
[1734988975170,2.89563,3453.5,3453.3,1.0206]
[1734988975716,3.0,3454.5,3453.3,1.0206]
[1734988975717,2.89535,3453.9,3453.3,1.0206]
[1734988975904,1.1113,3454.2,3453.3,1.0206]
[1734988976169,1.1113,3454.2,3453.2,1.159777]
[1734988976170,2.8957,3453.4,3453.2,1.159777]
[1734988976370,2.8957,3453.4,3452.7,1.0254]
[1734988976924,2.8957,3453.4,3452.7,2.18537]
[1734988977823,1.1113,3454.2,3452.9,0.57352206]
[1734988978005,2.8956,3453.6,3452.9,0.57352206]
[1734988978375,2.89521,3454.0,3453.1,1.0848]
[1734988979000,2.36059274,3454.6,3453.1,1.0848]
[1734988979001,2.89469,3454.6,3453.1,1.0848]
[1734988979173,2.89544,3453.7,3452.7,1.15997]
[1734988979511,2.89611,3453.0,3452.6,1.0966]
[1734988979673,5.79104,3453.6,3452.6,1.0966]
[1734988979876,2.89567,3453.5,3452.7,1.160096]
[1734988980173,1.18029637,3454.0,3452.7,1.44332682]
[1734988980386,2.89553,3453.6,3452.7,1.160096]
[1734988980604,1.18029637,3454.0,3452.7,1.160096]
[1734988980805,1.18029637,3454.0,3452.8,1.0883]
[1734988981007,1.18029637,3454.0,3453.4,1.0724]
[1734988981308,1.77044456,3454.2,3453.5,0.56806437]
[1734988981309,2.89509,3454.2,3453.5,0.56806437]
[1734988981671,2.89487,3454.4,3453.5,0.56806437]
[1734988981875,1.18029637,3454.5,3453.5,0.56806437]
[1734988982110,2.89557,3453.6,3453.4,1.0724]
[1734988982879,2.89561,3453.5,3452.9,1.0257]
[1734988983078,2.8952,3454.0,3452.9,1.0257]
[1734988983079,2.0,3454.0,3452.9,1.0257]
[1734988983322,2.89603,3453.0,3452.7,1.160096]
[1734988983617,2.89582,3453.3,3452.5,1.0257]
[1734988983828,3.0,3453.5,3452.6,1.16014]
[1734988983979,2.89613,3452.9,3452.5,1.0257]
[1734988984179,8.90645854,3453.6,3452.5,1.0257]
[1734988984390,3.0,3453.5,3452.5,1.0257]
[1734988984694,3.0,3453.9,3452.5,1.30225745]
[1734988984890,3.0,3453.9,3452.6,0.0289595]
[1734988985104,3.0,3453.9,3452.5,1.30225745]
[1734988985105,1.18029637,3453.9,3452.5,1.30225745]
[1734988985403,3.0,3453.5,3452.5,1.0257]
[1734988985611,2.8964,3452.6,3452.1,1.1149]
[1734988985918,2.89653,3452.4,3452.3,1.16014]
[1734988986323,2.89688,3452.0,3451.7,1.1149]
[1734988986524,3.90816,3453.5,3451.7,1.1149]
[1734988986682,1.0125,3453.5,3451.9,1.1149]
[1734988987018,2.89603,3453.0,3451.9,1.1149]
[1734988987419,2.89666,3452.3,3451.9,1.1149]
[1734988987580,2.89621,3452.8,3451.9,1.1149]
[1734988987783,4.0125,3453.5,3452.0,0.58348184]
[1734988987982,2.89605,3453.0,3452.0,0.58348184]
[1734988988189,2.8959,3453.2,3452.0,3.65013002]
[1734988988495,6.90818,3453.5,3452.0,3.65013002]
[1734988988496,4.0125,3453.5,3452.0,0.75332002]
[1734988988815,3.0,3453.3,3452.0,0.58348184]
[1734988989126,2.89604,3453.0,3452.0,3.48031184]
[1734988989322,6.0125,3453.5,3452.0,0.58348184]
[1734988989484,4.0182,3453.1,3451.5,1.16014]
[1734988989681,2.89671,3452.2,3451.5,1.16014]
[1734988989886,2.89682,3452.1,3451.5,1.16014]
[1734988990116,3.0,3452.7,3451.5,1.16014]
[1734988990334,3.91419,3453.1,3451.5,1.16014]
[1734988990335,5.89641,3452.6,3451.6,0.5687366]
[1734988991311,2.89641,3452.6,3451.6,0.5687366]
[1734988991811,2.0,3452.9,3451.5,1.16014]
[1734988992009,2.8972,3451.6,3451.4,1.0955]
[1734988992226,2.89738,3451.4,3450.5,1.1202]
[1734988992392,2.89738,3451.4,3451.0,1.16014]
[1734988992593,2.89718,3451.7,3450.5,1.1202]
[1734988992799,2.89718,3451.7,3450.6,1.160583]
[1734988992998,2.8972,3451.6,3450.6,1.160583]
[1734988993229,2.8973,3451.5,3450.6,1.160583]
[1734988993437,3.37832225,3451.8,3449.6,4.03334393]
[1734988993596,3.0,3451.1,3450.0,1.4273]
[1734988993800,2.89771,3451.0,3450.0,1.4273]
[1734988994048,2.89846,3450.1,3450.0,0.3508]
[1734988994762,2.8983,3450.3,3450.0,0.3508]
[1734988994900,2.89797,3450.7,3450.0,0.3508]
[1734988995105,2.89705,3451.8,3450.1,1.0578]
[1734988995106,2.89782,3450.9,3450.1,1.0578]
[1734988995298,2.89762,3451.1,3450.1,1.0578]
[1734988995523,2.8978,3450.9,3450.1,1.0578]
[1734988995839,3.0,3451.2,3450.1,1.0578]
[1734988996230,2.89783,3450.9,3450.1,1.0578]
[1734988996434,2.89805,3450.6,3450.1,1.0578]
[1734988996604,2.89821,3450.4,3450.1,1.0578]
[1734988996803,2.89773,3451.0,3450.0,0.3508]
[1734988997004,2.89814,3450.5,3450.0,0.3508]
[1734988997304,2.89823,3450.4,3450.0,0.3508]
[1734988998137,2.89804,3450.7,3450.0,0.3508]
[1734988998351,3.0,3451.0,3450.0,0.3508]
[1734988998567,2.89813,3450.5,3450.0,0.3508]
[1734988998728,2.89796,3450.7,3450.0,0.3508]
[1734988999055,3.0,3451.1,3450.0,0.3508]
[1734988999227,2.89846,3450.1,3450.0,0.3508]
[1734988999629,2.8983,3450.3,3450.0,0.3508]
[1734988999817,1.1081,3451.0,3450.0,0.3508]
[1734989000018,2.0,3450.8,3450.0,0.3508]
[1734989000354,2.89846,3450.1,3450.0,0.3508]
[1734989000517,6.97706,3450.1,3450.0,0.3508]
[1734989001355,5.4407143,3450.6,3450.0,0.3508]
[1734989001356,3.0,3450.5,3450.0,0.3508]
[1734989001661,2.89846,3450.1,3450.0,0.3508]
[1734989002853,6.97156,3450.1,3450.0,1e-05]
[1734989003255,8.28222186,3450.1,3450.0,1e-05]
[1734989003441,13.02432086,3450.1,3450.0,1e-05]
[1734989003917,6.97156,3450.1,3450.0,1e-05]
[1734989004820,9.512121,3450.1,3450.0,1e-05]
[1734989005022,10.49735,3450.1,3450.0,1e-05]
[1734989005231,11.25801186,3450.1,3450.0,1e-05]
[1734989005445,3.0,3448.8,3447.8,1.0755]
[1734989005750,5.89973,3448.6,3447.8,1.0755]
[1734989005981,2.89973,3448.6,3447.8,1.0755]
[1734989006158,3.0,3449.5,3447.8,1.473108]
[1734989006370,2.89925,3449.2,3447.9,2.9003]
[1734989006574,3.4407143,3448.0,3445.9,2.90193]
[1734989006850,3.4407143,3448.0,3445.2,0.172912]
[1734989006851,4.1166,3446.5,3445.2,0.172912]
[1734989007055,3.0,3446.3,3445.2,0.172912]
[1734989007351,4.1166,3447.1,3445.2,0.172912]
[1734989007568,2.90134,3446.7,3445.2,0.172912]
[1734989007750,4.1166,3447.1,3445.2,0.172912]
[1734989007751,3.0,3446.9,3445.2,0.172912]
[1734989007952,2.9015,3446.5,3445.4,1.0765]
[1734989008403,2.90155,3446.5,3445.4,1.0765]
[1734989008692,3.0,3447.3,3445.4,1.0765]
[1734989009011,2.90161,3446.4,3445.4,1.0765]
[1734989009354,2.90176,3446.2,3445.4,1.0765]
[1734989009663,3.0,3447.3,3445.4,1.0765]
[1734989009864,3.0,3447.0,3445.4,1.0765]
[1734989010063,3.0,3446.7,3445.4,1.0765]
[1734989010397,2.90157,3446.4,3445.4,1.0765]
[1734989010689,2.90226,3445.6,3445.4,1.0765]
[1734989010992,2.90226,3445.6,3445.2,0.172912]
[1734989011162,2.90243,3445.4,3445.2,0.172912]
[1734989012261,5.9025,3445.3,3445.2,2e-06]
[1734989012459,7.9025,3445.3,3445.2,2e-06]
[1734989012692,10.293652,3445.3,3445.2,2e-06]
[1734989013053,9.967647,3445.3,3445.2,2e-06]
[1734989013259,7.9025,3445.3,3445.2,2e-06]
[1734989013458,5.9025,3445.3,3445.2,2e-06]
[1734989016063,6.3428643,3445.8,3445.2,2e-06]
[1734989016259,5.90218,3445.7,3445.2,2e-06]
[1734989016462,2.90227,3445.6,3445.2,2e-06]
[1734989016719,3.4407143,3445.8,3445.2,2e-06]
[1734989016862,2.9025,3445.3,3445.2,2e-06]
[1734989017291,3.40954839,3445.3,3445.2,2e-06]
[1734989017881,5.9025,3445.3,3445.2,2e-06]
[1734989021504,7.52184839,3445.3,3445.2,2e-06]
[1734989022997,5.9025,3445.3,3445.2,2e-06]
[1734989023671,6.40954839,3445.3,3445.2,2e-06]
[1734989023872,5.9025,3445.3,3445.2,2e-06]
[1734989024068,2.90232,3445.6,3445.2,2e-06]
[1734989024402,2.90232,3445.6,3445.2,1.094902]
[1734989024770,5.4407143,3445.8,3445.2,2e-06]
[1734989024971,2.9025,3445.3,3445.2,2e-06]
[1734989025213,3.4407143,3445.8,3445.2,2e-06]
[1734989025729,3.4407143,3445.8,3445.3,1.0727]
[1734989026073,6.3428043,3445.8,3445.3,1.0727]
[1734989026623,2.9017,3446.3,3445.3,1.0727]
[1734989026828,3.4407143,3445.9,3445.3,1.0727]
[1734989026988,2.90242,3445.4,3445.3,1.0727]
[1734989027190,2.9025,3445.3,3445.2,2e-06]
[1734989028137,5.90209,3445.8,3445.3,1.0563]
[1734989028292,3.0,3445.8,3445.3,1.0563]
[1734989028507,3.91526269,3446.4,3445.3,1.0563]
[1734989028508,3.4407143,3446.4,3445.3,1.0563]
[1734989028706,0.47454839,3446.8,3445.4,1.08531975]
[1734989028907,3.4407143,3446.9,3445.6,1.0563]
[1734989029095,0.40416734,3448.1,3445.6,1.0563]
[1734989029096,3.4407143,3446.4,3445.6,1.0563]
[1734989029414,3.37620839,3446.3,3445.6,1.0563]
[1734989029628,2.90201,3445.9,3445.6,1.0563]
[1734989029817,2.90226,3445.6,3445.2,1.056302]
[1734989030036,0.47454839,3446.3,3445.2,1.056302]
[1734989030198,2.90184,3446.1,3445.2,1.056302]
[1734989030393,3.0,3446.0,3445.2,1.056302]
[1734989030652,3.0,3445.7,3445.2,1.056302]
[1734989030808,5.47454839,3446.3,3445.2,1.056302]
[1734989031023,3.0,3445.7,3445.2,1.056302]
[1734989031858,0.47454839,3446.3,3445.2,1.056302]
[1734989032194,3.0,3446.1,3445.2,1.056302]
[1734989032503,3.47454839,3446.3,3445.2,1.056302]
[1734989032740,2.90205,3445.9,3445.2,1.056302]
[1734989033126,2.90211,3445.8,3445.2,1.056302]
[1734989033434,3.0,3445.9,3445.2,1.056302]
[1734989033637,2.9022,3445.7,3445.2,1.056302]
[1734989034146,3.47454839,3446.3,3445.2,1.056302]
[1734989034503,2.90144,3446.6,3445.4,3.95863]
[1734989034712,2.90151,3446.5,3445.4,3.95863]
[1734989035153,0.49636506,3446.5,3445.4,1.0563]
[1734989035315,0.49636506,3446.4,3445.4,1.0563]
[1734989035511,3.4407143,3447.0,3445.5,0.55]
[1734989035752,2.90116,3446.9,3445.9,1.0563]
[1734989036253,2.90124,3446.8,3446.2,0.58563355]
[1734989036455,3.4407143,3447.0,3446.2,0.58563355]
[1734989036958,2.90131,3446.8,3446.2,0.58563355]
[1734989037163,3.4407143,3447.0,3446.2,0.58563355]
[1734989037362,2.90132,3446.7,3446.2,0.58563355]
[1734989037550,6.3417943,3447.0,3446.2,0.58563355]
[1734989037718,3.4407143,3447.0,3446.2,0.58563355]
[1734989038057,2.90092,3447.2,3446.3,1.0563]
[1734989038224,3.4407143,3447.6,3446.3,1.51067336]
[1734989038423,3.4407143,3447.6,3446.3,1.0563]
[1734989038647,3.4407143,3447.6,3446.4,2.90149]
[1734989038867,2.90065,3447.5,3446.3,1.0563]
[1734989039020,3.4407143,3447.6,3446.3,1.0563]
[1734989039220,2.90024,3448.0,3446.5,1.1339]
[1734989039452,2.90023,3448.0,3446.9,1.1339]
[1734989039659,2.9004,3447.8,3446.9,1.1339]
[1734989040371,0.49636506,3447.8,3446.9,1.1339]
[1734989040584,3.0,3448.1,3446.9,1.1339]
[1734989040875,6.3407943,3448.2,3446.6,2.93040912]
[1734989040876,3.4407143,3448.2,3447.3,2.90081]
[1734989041060,3.4407143,3448.2,3446.6,0.02900558]
[1734989041061,3.87320664,3448.8,3447.4,2.02018043]
[1734989041260,0.49636506,3448.5,3447.4,1.67509943]
[1734989041479,2.90027,3448.0,3447.4,1.67509943]
[1734989041649,0.49636506,3448.5,3447.4,1.67509943]
[1734989041976,3.4407143,3447.6,3445.9,1.0453]
[1734989042274,2.90124,3446.8,3446.0,0.394738]
[1734989042582,3.96382,3447.3,3445.9,1.0453]
[1734989042764,1.49549234,3447.3,3445.9,1.0453]
[1734989043077,2.90112,3447.0,3445.9,3.94728]
[1734989043535,1.063,3447.8,3446.2,3.94697]
[1734989043536,3.0,3447.2,3446.2,3.94697]
[1734989043933,2.90111,3447.0,3446.2,1.0453]
[1734989044373,2.90065,3447.5,3446.2,1.0453]
[1734989044684,2.90108,3447.0,3446.2,1.0453]
[1734989045054,2.90116,3446.9,3446.2,1.0453]
[1734989045665,2.90101,3447.1,3446.2,1.0453]
[1734989045856,2.9012,3446.9,3446.2,1.0453]
[1734989046881,2.90097,3447.2,3446.2,1.0453]
[1734989047101,2.90116,3446.9,3446.2,1.0453]
[1734989047374,2.90156,3446.5,3446.2,1.0453]
[1734989047575,2.90166,3446.3,3446.2,1.0453]
[1734989047950,2.90138,3446.7,3446.2,1.0453]
[1734989048159,2.90148,3446.6,3446.2,1.0453]
[1734989048476,3.0,3446.9,3446.2,1.0453]
[1734989048643,2.9015,3446.5,3446.2,1.0453]
[1734989048979,2.90165,3446.4,3446.2,1.0453]
[1734989049180,3.4407143,3446.6,3445.7,1.0864]
[1734989049340,2.90216,3445.7,3445.3,1.0864]
[1734989049673,2.90227,3445.6,3445.3,1.0864]
[1734989049897,3.0,3445.7,3445.3,1.0864]
[1734989050100,5.9022,3445.7,3445.3,1.0864]
[1734989050265,3.0,3445.8,3445.3,1.0864]
[1734989050470,2.90241,3445.5,3445.3,1.0864]
[1734989051698,5.90216,3445.8,3445.3,1.0864]
[1734989052001,2.90219,3445.7,3445.3,1.0864]
[1734989052896,3.0,3446.1,3445.3,1.0864]
[1734989053113,2.90241,3445.5,3445.2,2e-06]
[1734989053309,2.9025,3445.3,3445.2,2e-06]
[1734989053997,2.90208,3445.8,3445.2,2e-06]
[1734989054204,4.1310373,3447.6,3445.4,2.90242]
[1734989054205,2.90165,3446.4,3445.4,2.90242]
[1734989054510,1.18029637,3446.5,3445.5,0.43166273]
[1734989054713,1.18029637,3446.1,3445.6,1.124]
[1734989055590,1.18029637,3446.1,3445.7,2.90216]
[1734989055788,1.18029637,3446.1,3446.0,3.45191]
[1734989056014,0.03879637,3447.1,3446.1,2.90183]
[1734989056200,0.03879637,3447.1,3446.5,2.90146]
[1734989056511,0.03879637,3447.1,3446.7,1.124]
[1734989057031,3.02412613,3447.6,3446.7,1.124]
[1734989057190,2.90056,3447.7,3446.7,1.124]
[1734989058333,3.0,3448.0,3446.7,1.124]
[1734989058632,3.0,3448.1,3446.7,1.124]
[1734989058834,2.90028,3448.0,3446.7,1.124]
[1734989059039,3.0,3447.8,3446.7,1.124]
[1734989059929,2.9005,3447.7,3446.1,1.0526]
[1734989060088,2.90023,3448.0,3446.4,2.90152]
[1734989060292,3.0,3448.1,3446.4,2.90152]
[1734989060489,3.0,3448.1,3446.2,0.21731555]
[1734989060490,3.43249234,3448.1,3446.2,0.21731555]
[1734989060749,2.90108,3447.0,3446.2,0.21731555]
[1734989060947,3.0,3447.5,3446.1,1.0526]
[1734989061127,5.90072,3447.5,3446.4,2.90155]
[1734989061314,5.90072,3447.5,3446.5,0.58190495]
[1734989061527,3.0,3447.5,3446.7,2.9013]
[1734989061836,3.0,3448.1,3446.6,1.0526]
[1734989061995,2.90023,3448.0,3446.7,0.4535995]
[1734989062200,3.0,3447.7,3446.7,3.3549095]
[1734989063132,2.90023,3448.0,3446.6,1.0526]
[1734989063311,2.901,3447.1,3446.6,1.0526]
[1734989063513,2.90083,3447.3,3446.6,1.0526]
[1734989063697,5.26027274,3448.7,3446.6,1.0526]
[1734989063698,3.0,3448.0,3446.6,1.0526]
[1734989064795,3.0,3447.7,3446.7,2.90131]
[1734989064997,3.0,3447.7,3446.7,0.4535815]
[1734989064998,2.90067,3447.5,3446.7,0.4535815]
[1734989065421,3.0,3447.7,3446.7,0.4535815]
[1734989065627,3.0,3447.9,3446.9,2.90114]
[1734989066228,3.0,3447.8,3446.9,2.90114]
[1734989066423,3.0,3448.1,3447.2,2.90088]
[1734989066634,2.8999,3448.4,3447.3,1.0371]
[1734989067108,1.77044456,3448.5,3447.6,3.47213314]
[1734989067337,1.77044456,3448.5,3447.8,1.1365]
[1734989067843,1.21122511,3448.8,3448.7,2.89964]
[1734989068009,1.21122511,3448.8,3448.7,4.02954]
[1734989069340,3.54088912,3449.6,3448.4,2.89983]
[1734989069341,2.89847,3450.1,3448.9,1.0888]
[1734989069543,3.0,3450.3,3449.1,2.89927]
[1734989069725,2.89813,3450.5,3449.2,1.0888]
[1734989069943,4.1232,3450.6,3449.2,1.0888]
[1734989069944,2.89837,3450.3,3449.2,1.0888]
[1734989070143,5.89809,3450.6,3449.5,2.89896]
[1734989070345,2.89809,3450.6,3449.6,1.35708008]
[1734989070660,1.21122511,3451.1,3450.1,1.0382]
[1734989070857,1.21122511,3451.1,3450.2,2.89836]
[1734989071029,1.21122511,3451.1,3450.1,1.0382]
[1734989071430,1.21122511,3451.8,3450.4,0.55]
[1734989071640,1.21122511,3451.8,3450.3,1.1259]
[1734989071641,1.21122511,3451.8,3450.5,3.06571]
[1734989071841,2.89712,3451.7,3450.5,3.06571]
[1734989072247,4.48661725,3451.6,3450.5,0.16759]
[1734989072443,1.58938725,3451.6,3450.5,0.16759]
[1734989072774,3.45107891,3451.2,3450.4,0.57132394]
[1734989072927,3.45107891,3451.2,3449.0,3.25]
[1734989072928,2.8981,3450.6,3449.9,1.1259]
[1734989073267,2.89813,3450.5,3449.9,1.1259]
[1734989073463,2.89752,3451.3,3450.0,2.89854]
[1734989073625,2.89752,3451.3,3450.2,2.89836]
[1734989073825,2.89752,3451.3,3450.3,1.1259]
[1734989074033,1.58938725,3451.6,3450.3,1.1259]
[1734989074281,2.8973,3451.5,3450.3,1.1259]
[1734989074430,1.58938725,3451.6,3450.4,0.55]
[1734989074632,1.58938725,3451.6,3450.5,1.1259]
[1734989074829,1.58938725,3451.6,3450.6,0.17048778]
[1734989075039,4.48660725,3451.6,3450.6,0.17048778]
[1734989075233,1.58938725,3451.6,3450.7,1.15487403]
[1734989075437,1.58938725,3451.6,3450.9,1.1259]
[1734989075640,1.58938725,3451.6,3451.1,1.1259]
[1734989075825,1.58938725,3451.6,3451.3,1.1259]
[1734989076027,6.34852347,3453.6,3451.8,1.1259]
[1734989076333,2.89588,3453.2,3451.9,0.55]
[1734989076525,2.89588,3453.2,3452.0,2.89684]
[1734989076762,2.89596,3453.1,3451.9,0.71759]
[1734989076929,2.89605,3453.0,3451.9,0.71759]
[1734989077343,2.89613,3452.9,3451.9,0.71759]
[1734989077871,3.0,3453.0,3451.9,0.71759]
[1734989078067,2.89603,3453.0,3452.0,0.474049]
[1734989078229,3.0,3453.4,3452.0,0.474049]
[1734989078429,2.8961,3453.0,3451.8,1.1259]
[1734989078677,0.43249234,3453.3,3451.8,1.1259]
[1734989078986,2.89635,3452.7,3451.9,0.5938995]
[1734989079272,5.89603,3453.0,3451.8,1.1259]
[1734989079442,3.0,3452.6,3451.8,1.1259]
[1734989079643,2.89633,3452.7,3451.8,1.1259]
[1734989080043,3.0,3452.9,3451.9,0.570836]
[1734989080247,5.89611,3452.9,3452.0,0.4593726]
[1734989080479,3.0,3453.0,3452.0,0.55]
[1734989080773,3.0,3453.0,3452.1,1.0999]
[1734989081353,2.89606,3453.0,3452.1,1.0999]
[1734989081775,3.0,3453.5,3452.1,1.0999]
[1734989081945,2.89627,3452.8,3452.1,1.0999]
[1734989082349,2.89639,3452.6,3452.1,1.0999]
[1734989082879,2.8968,3452.1,3451.9,0.570836]
[1734989083183,2.89703,3451.8,3451.7,1.0564]
[1734989084646,3.0,3452.5,3451.7,1.0564]
[1734989085271,2.89687,3452.0,3451.7,1.0564]
[1734989085474,2.89703,3451.8,3451.7,1.0564]
[1734989086469,3.0,3452.4,3451.7,1.0564]
[1734989086723,2.89657,3452.4,3451.7,1.0564]
[1734989086863,2.89612,3452.9,3451.7,3.9535]
[1734989087057,2.89593,3453.2,3452.0,0.55]
[1734989087370,4.00125,3453.4,3452.1,1.0759]
[1734989087371,2.89605,3453.0,3452.1,1.0759]
[1734989087576,2.89625,3452.8,3452.1,1.0759]
[1734989088784,3.0,3453.1,3452.1,1.0759]
[1734989089106,2.89622,3452.8,3452.1,1.0759]
[1734989089323,3.0,3453.0,3452.1,1.0759]
[1734989089618,5.8962,3452.8,3452.1,1.0759]
[1734989089919,5.8962,3452.8,3451.1,1.0832]
[1734989089920,2.89628,3452.7,3451.1,1.0832]
[1734989090129,2.8968,3452.1,3451.1,1.0832]
[1734989090275,2.89636,3452.6,3451.1,1.0832]
[1734989090276,3.0,3452.6,3451.1,1.0832]
[1734989090475,2.89681,3452.1,3451.5,0.56769712]
[1734989090671,2.89689,3452.0,3451.5,0.56769712]
[1734989090993,2.89699,3451.9,3451.5,0.56769712]
[1734989091171,2.89699,3451.9,3451.2,0.24141014]
[1734989091376,2.89721,3451.6,3451.2,0.24141014]
[1734989091824,2.89725,3451.6,3451.1,1.0832]
[1734989092324,2.89695,3451.9,3451.1,1.0832]
[1734989092618,2.89688,3452.0,3451.1,1.0832]
[1734989092775,2.89695,3451.9,3451.1,1.0832]
[1734989092971,2.89688,3452.0,3451.1,1.0832]
[1734989093211,2.89688,3452.0,3451.2,0.56682606]
[1734989093718,2.89717,3451.7,3451.2,0.56682606]
[1734989094118,2.89729,3451.5,3451.2,0.56682606]
[1734989094291,2.89719,3451.7,3451.2,0.56682606]
[1734989094888,2.89694,3452.0,3451.2,0.84787007]
[1734989096317,2.89661,3452.3,3451.2,0.84787007]
[1734989096612,2.89695,3451.9,3451.2,0.84787007]
[1734989097502,4.44216234,3452.8,3451.2,0.84787007]
[1734989097503,3.0,3452.5,3451.2,0.84787007]
[1734989097709,1.0725,3453.2,3451.5,4.55204]
[1734989098020,2.89628,3452.7,3451.7,1.1048]
[1734989098758,5.908705,3453.2,3451.9,1.6054]
[1734989098956,3.012815,3453.6,3452.1,1.0554]
[1734989099178,2.89644,3452.6,3452.1,1.0554]
[1734989099510,2.89661,3452.4,3452.1,1.0554]
[1734989099840,2.89664,3452.3,3452.1,1.0554]
[1734989100079,2.89636,3452.6,3452.1,1.0554]
[1734989100233,2.89669,3452.3,3452.1,1.0554]
[1734989100428,2.8962,3452.8,3452.1,1.0554]
[1734989100738,2.8962,3452.8,3451.2,0.28104401]
[1734989100739,3.0,3452.1,3451.0,1.0554]
[1734989101037,5.89664,3452.3,3451.3,0.56661699]
[1734989101230,0.43249234,3452.7,3451.5,1.0554]
[1734989101487,5.89627,3452.8,3451.5,1.0554]
[1734989101694,2.89605,3453.0,3452.0,1.0554]
[1734989101834,2.89678,3452.1,3452.0,1.0554]
[1734989102022,3.44142062,3452.6,3451.4,1.0554]
[1734989102264,2.89709,3451.8,3451.4,1.0554]
[1734989102618,6.77033296,3452.6,3450.9,1.0849]
[1734989102619,2.89755,3451.2,3450.9,1.0849]
[1734989103048,1.1023,3451.8,3450.9,1.0849]
[1734989103263,1.1023,3451.8,3449.5,2.89891]
[1734989103264,3.0,3451.5,3450.5,1.0849]
[1734989103464,2.89787,3450.9,3450.5,1.0849]
[1734989104259,2.89757,3451.2,3450.5,1.67718542]
[1734989104478,3.0,3451.8,3450.6,0.19669658]
[1734989104629,2.89739,3451.4,3450.6,0.16771854]
[1734989104850,3.0,3451.7,3450.6,0.16771854]
[1734989105050,3.0,3452.0,3450.6,0.16771854]
[1734989105392,1.1214,3451.4,3450.5,1.0849]
[1734989105599,1.1214,3451.4,3450.1,2.210386]
[1734989105955,5.7949,3451.3,3450.1,1.0497]
[1734989106153,2.89815,3450.5,3450.1,1.0497]
[1734989106572,2.89821,3450.4,3450.1,1.0497]
[1734989107101,2.89745,3451.3,3448.9,1.1178]
[1734989107102,3.0,3451.0,3448.9,1.1178]
[1734989107472,3.0,3450.5,3449.2,1.1178]
[1734989107575,2.89827,3450.4,3449.5,0.57259677]
[1734989107765,3.0,3450.7,3449.5,0.57259677]
[1734989108921,2.89848,3450.1,3449.5,0.57259677]
[1734989109061,3.0,3450.5,3449.5,0.57259677]
[1734989109264,2.89806,3450.6,3449.6,1.0726]
[1734989109464,3.44142062,3451.1,3449.7,0.45442268]
[1734989109465,2.89799,3450.7,3449.7,0.45442268]
[1734989109799,2.89814,3450.5,3449.7,0.45442268]
[1734989110118,2.89753,3451.3,3450.2,2.89836]
[1734989110283,2.89753,3451.3,3450.3,1.0361]
[1734989110461,4.94331296,3452.1,3450.4,0.393446]
[1734989110662,2.89702,3451.9,3450.7,1.0361]
[1734989110915,2.89728,3451.6,3450.9,0.57458274]
[1734989111231,2.89653,3452.4,3450.9,0.57458274]
[1734989111356,2.89711,3451.8,3450.9,0.57458274]
[1734989111559,0.43249234,3452.4,3450.9,0.57458274]
[1734989111796,2.89678,3452.1,3450.9,0.73565101]
[1734989112153,0.43249234,3452.4,3450.9,0.73565101]
[1734989112364,2.89696,3451.9,3451.0,1.0361]
[1734989112560,2.89678,3452.2,3451.0,1.0361]
[1734989112808,2.89681,3452.1,3451.1,0.02897021]
[1734989113117,2.89695,3452.0,3451.2,0.46984712]
[1734989113403,2.89713,3451.7,3451.0,1.0361]
[1734989113609,2.89653,3452.4,3451.0,1.0361]
[1734989113764,1.0694,3452.5,3451.0,1.0361]
[1734989113956,2.89697,3451.9,3451.0,1.0361]
[1734989114160,2.89711,3451.8,3451.0,1.0361]
[1734989114603,2.89685,3452.1,3451.0,1.2132751]
[1734989115312,2.89661,3452.4,3451.0,1.2132751]
[1734989115459,3.0,3452.3,3451.1,0.55]
[1734989115804,2.89627,3452.8,3451.4,1.0854]
[1734989116008,2.89636,3452.7,3451.5,3.98268]